[Event "Fredericia WIM 2022"]
[Site "Fredericia"]
[Date "2022.05.27"]
[Round "5.2"]
[White "Goossens, Hanne"]
[Black "Doluhanova, Evgeniya"]
[Result "1-0"]
[ECO "A45"]
[WhiteElo "2184"]
[BlackElo "2270"]
[Annotator "TA"]
[PlyCount "87"]
[EventDate "2022.05.25"]
[EventType "tourn"]
[EventCountry "DEN"]
[SourceTitle "playchess.com"]
[Source "ChessBase"]
[SourceQuality "1"]
[TimeControl "40/5400+30:1800+30"]

{[%evp 9,87,-8,-11,-8,-17,-20,6,-10,0,0,0,13,41,35,79,65,66,20,29,20,16,17,114,110,112,-41,-30,-28,-24,-39,0,-59,3,-43,140,139,367,346,362,354,358,365,343,353,740,718,880,857,857,567,1187,1147,954,873,1164,1064,1020,1014,1037,1011,2232,2070,5189,1180,1157,1118,1331,1225,29970,29971,29974,29975,29963,6654,5289,4158,29986,29954,29970,29959]} 1. d4 {[%emt 0:00:05]} Nf6 {[%emt 0:01:22]} 2. Nc3 {[%emt 0:00:08]} d5 {[%emt 0:00:05]} 3. Bf4 {[%emt 0:00:07]} e6 {[%emt 0:00:03]} 4. Nb5 {[%emt 0:00:11]} Na6 {[%emt 0:00:04]} 5. e3 {[%emt 0:00:09]} Be7 {[%emt 0:00:03]} 6. Nf3 {[%emt 0:00:34] D00: 1 d4 d5: Unusual lines.} O-O {[%emt 0:00:06]} 7. Be2 {[%emt 0:00:54]} Ne4 {[%emt 0:02:20] [#]} 8. O-O $146 {[%emt 0:01:08] The position is equal.} ({Predecessor:} 8. a4 c6 9. Na3 Nc7 10. O-O Bd6 11. Bd3 Bxf4 12. exf4 Qd6 13. Qc1 b6 14. Qe3 {1-0 (76) Artemenko,O (2246)-Djordjevic,V (2382) Chess.com INT 2022}) 8... c6 {[%emt 0:29:44]} 9. Nc3 {[%emt 0:00:31]} Nxc3 {[%emt 0:00:19]} 10. bxc3 {[%emt 0:00:05]} Qa5 {[%emt 0:00:06]} 11. c4 {[%emt 0:03:06]} Bd7 {[%emt 0:07:33]} (11... dxc4 12. Bxc4 Rd8) 12. cxd5 {[%emt 0:20:21]} cxd5 {[%emt 0:00:16]} 13. c4 {[%emt 0:00:13]} (13. Qb1 $14 b6 14. c4) 13... dxc4 $11 {[%emt 0:08:35]} 14. Bxc4 {[%emt 0:00:16]} Rac8 {[%emt 0:00:22]} 15. Ne5 {[%emt 0:05:53]} Ba4 {[%emt 0:01:32]} (15... Bb5 16. Bxb5 Qxb5) (15... Bb5 $11 16. Bxb5 Qxb5) 16. Qg4 $16 {[%emt 0:06:01][%cal Oc4e6] Strongly threatening Bxe6!} Nc7 {[%emt 0:00:49]} 17. Nxf7 $2 {[%emt 0:13:23] White is more active.} Rxf7 {[%emt 0:02:22]} 18. Bxc7 {[%emt 0:00:19][%mdl 64] Remove Defender} Rxc7 {[%emt 0:02:33]} (18... Qxc7 19. Bxe6 Rcf8 20. Rac1) (18... Qxc7 19. Bxe6 Rcf8 20. Rac1 $11) 19. Bxe6 {[%emt 0:00:40]} Ba3 {[%emt 0:00:28][%cal Og7g6] Prevents Rac1.} 20. d5 {[%emt 0:03:40]} (20. e4 $11) 20... Qb4 {[%emt 0:13:12]} 21. e4 {[%emt 0:04:57]} (21. Bxf7+ $11 Rxf7 22. Qxb4 Bxb4 23. Rfc1) 21... g6 $2 {[%emt 0:11:07] [#]} 22. Rab1 $1 $36 {[%emt 0:04:42][%mdl 2048] White is really pushing.} Qc3 {[%emt 0:10:03] This move loses the game for Black.} (22... Qd4 $16 {was called for.}) 23. e5 $1 $18 {[%emt 0:02:52]} Bc2 {[%emt 0:07:55]} 24. d6 {[%emt 0:14:55]} Kg7 {[%emt 0:00:04]} 25. dxc7 {[%emt 0:03:49] Dancing on a razor blade.} Rxc7 {[%emt 0:00:07]} 26. Rbe1 {[%emt 0:01:08]} (26. Qf4 Bxb1 27. Rxb1 (27. Qf6+ Kh6 $11) 27... Qc1+ 28. Rxc1 Rxc1+ 29. Qxc1 Bxc1 $16) 26... Bd3 $2 {[%emt 0:01:27] [#]} (26... Qc6 27. Qg3 Bc5) 27. Qf3 $1 {[%emt 0:04:16]} Bxf1 {[%emt 0:00:41]} (27... h5 28. Re3) 28. Qf6+ {[%emt 0:00:18]} (28. Rxf1 Qxf3 29. gxf3 Re7 $15) 28... Kh6 {[%emt 0:00:04]} 29. Re3 {[%emt 0:00:39]} ({Weaker is} 29. Rxf1 Qc5 $16) ({Not} 29. Kxf1 Qd3+ 30. Kg1 Qe4 $11) 29... Be2 {[%emt 0:00:32][%cal Rc3a1]} 30. Rxc3 {[%emt 0:01:10]} Rxc3 {[%emt 0:00:04]} 31. h3 {[%emt 0:00:43]} Rc6 {[%emt 0:01:13]} 32. Qf4+ {[%emt 0:01:21]} Kg7 {[%emt 0:00:05]} 33. Bd5 {[%emt 0:00:46]} Rc1+ {[%emt 0:00:52]} 34. Kh2 {[%emt 0:00:10] aiming for Qf7+.} Rd1 {[%emt 0:00:40]} 35. Bf3 {[%emt 0:00:39]} Re1 {[%emt 0:00:26]} 36. Bxe2 {[%emt 0:03:10]} (36. Qf6+ $142 Kh6 37. Bxb7) 36... Rxe2 {[%emt 0:00:05][%mdl 4096] Endgame KQ-KRB} 37. Qf3 {[%emt 0:00:56][%csl LRa3,LRb7,LRe2]} Rxa2 {[%emt 0:00:05]} 38. Qxb7+ {[%emt 0:00:21]} Kh6 {[%emt 0:00:10]} 39. Qxa7 {[%emt 0:00:22]} Ra1 {[%emt 0:00:20]} 40. Qe3+ {[%emt 0:00:53]} Kg7 {[%emt 0:00:14]} 41. e6 {[%emt 0:30:25]} (41. Qc3 $142 Ra2 42. e6+ Kf8 43. Qf6+ Kg8 44. Qd8+ Kg7 45. e7 Bxe7 46. Qxe7+ Kg8 47. Qe8+ Kg7 48. Qe7+ Kg8 49. Qe6+ Kf8 50. Qxa2) 41... Bd6+ {[%emt 0:30:13]} 42. g3 {[%emt 0:00:14] White wants to mate with Qd4+.} Kf8 {[%emt 0:00:12]} 43. Qd4 {[%emt 0:00:21]} Ra6 {[%emt 0:00:06]} 44. Qf6+ {[%emt 0:00:31] Weighted Error Value: White=0.34/Black=0.70} 1-0

[Event "Fredericia WIM 2022"]
[Site "Fredericia"]
[Date "2022.05.27"]
[Round "5.3"]
[White "Dwilewicz, Katarzyna"]
[Black "Andersson, Christin"]
[Result "1-0"]
[ECO "C41"]
[WhiteElo "2079"]
[BlackElo "2028"]
[Annotator "TA"]
[PlyCount "93"]
[EventDate "2022.05.25"]
[EventType "tourn"]
[EventCountry "DEN"]
[SourceTitle "playchess.com"]
[Source "ChessBase"]
[SourceQuality "1"]
[TimeControl "40/5400+30:1800+30"]

{[%evp 9,93,32,20,28,24,17,28,0,51,45,78,73,82,80,81,80,99,98,118,115,139,91,91,85,116,115,147,139,149,153,146,159,143,97,140,141,140,96,195,214,247,240,247,252,249,240,247,258,225,96,209,208,470,458,468,470,427,442,669,672,710,688,678,656,882,852,923,943,1036,1029,896,1046,1019,983,973,985,1194,1115,11700,11318,12840,12840,29990,29991,29994,29995]} 1. e4 {[%emt 0:00:04]} e5 {[%emt 0:00:07]} 2. Nf3 {[%emt 0:00:09]} d6 {[%emt 0:00:08]} 3. d4 {[%emt 0:00:15]} exd4 {[%emt 0:00:29]} 4. Nxd4 {[%emt 0:00:07]} Nf6 {[%emt 0:00:27]} 5. Nc3 {[%emt 0:00:07]} Be7 {[%emt 0:00:24]} 6. Qf3 {[%emt 0:00:54] C41: Philidor Defence.} O-O {[%emt 0:00:28]} 7. Nf5 {[%emt 0:00:43]} Bxf5 {[%emt 0:01:59]} 8. Qxf5 {[%emt 0:00:07] White has an edge.} Nc6 {[%emt 0:00:56]} (8... c6 $11) 9. Be3 $14 {[%emt 0:00:52]} Qc8 {[%emt 0:02:00]} 10. Qxc8 {[%emt 0:01:10]} Raxc8 {[%emt 0:00:09]} 11. f3 {[%emt 0:01:10]} Rfe8 {[%emt 0:01:31][%cal Od6d5]} 12. O-O-O {[%emt 0:00:56]} a6 {[%emt 0:00:49]} 13. g4 {[%emt 0:05:56][%cal Bg2g4,Bg4g5][%mdl 32]} Ne5 {[%emt 0:03:05] [#]} 14. g5 $146 {[%emt 0:09:02]} ({Predecessor:} 14. Be2 Bf8 15. g5 Nfd7 16. f4 Ng6 17. h4 b5 18. h5 Ne7 19. Bg4 Rcd8 20. Rhe1 {1-0 (40) Vega Gutierrez,S (2392)-Stojanovic,A (2357) Reykjavik 2015}) 14... Nfd7 {[%emt 0:03:19]} 15. Be2 {[%emt 0:04:00]} (15. f4 $142) 15... b5 $16 {[%emt 0:01:57]} 16. b3 {[%emt 0:02:25]} Nb6 {[%emt 0:03:07]} 17. f4 {[%emt 0:08:16]} Ng6 {[%emt 0:03:25][%cal Od6d5,Be5g6,Bg6e7,Be7c6,Bc6d4][%mdl 32]} 18. h4 {[%emt 0:09:38][%cal Bh2h4,Bh4h5][%mdl 32]} Bf8 {[%emt 0:03:33]} 19. h5 {[%emt 0:06:19]} Ne7 {[%emt 0:01:09]} 20. Bg4 $36 {[%emt 0:04:56][%mdl 2048] Black is under strong pressure. White is more active.} Rcd8 {[%emt 0:01:37]} 21. Rhe1 {[%emt 0:01:55]} (21. Bf2 $142) 21... c5 {[%emt 0:01:51]} 22. a3 {[%emt 0:01:46]} Nc6 {[%emt 0:01:53]} 23. Bf2 {[%emt 0:02:27]} b4 {[%emt 0:01:41]} (23... Nd4 $16 {was necessary.} 24. Kb1 (24. Bxd4 cxd4 25. Rxd4 d5 $16) 24... Ne6) 24. Nd5 $18 {[%emt 0:03:59]} Nxd5 {[%emt 0:00:22]} 25. exd5 {[%emt 0:02:27]} Rxe1 {[%emt 0:00:19]} 26. Bxe1 {[%emt 0:10:37]} ({Not} 26. Rxe1 Ne7 $16) 26... Nd4 {[%emt 0:00:13]} 27. axb4 {[%emt 0:00:16]} Re8 {[%emt 0:00:59]} 28. bxc5 {[%emt 0:01:01]} dxc5 {[%emt 0:00:10]} 29. Bg3 {[%emt 0:11:35]} (29. Kb2 $18 {has better winning chances.}) 29... Bd6 {[%emt 0:02:05]} (29... Re3 $16 {keeps fighting.} 30. Be1 (30. Bf2 Re4 $16) 30... Bd6) 30. Kd2 {[%emt 0:00:45]} Re4 $2 {[%emt 0:01:16] [#]} (30... Rd8 31. Kd3 a5) 31. Kd3 {[%emt 0:01:55]} Re8 {[%emt 0:00:39]} 32. Ra1 {[%emt 0:01:41]} Ra8 {[%emt 0:04:50]} 33. Ra5 {[%emt 0:03:05]} Kf8 {[%emt 0:01:36]} (33... Nb5 $142 34. Bf2 Bxf4 35. Bxc5 Bxg5) 34. b4 {[%emt 0:00:41][%cal Bb3b4,Bb4c5,Bc5c6][%mdl 32]} Nb5 {[%emt 0:02:50]} 35. c4 {[%emt 0:04:06]} Bc7 {[%emt 0:00:15]} 36. Ra1 {[%emt 0:00:26]} Nd4 {[%emt 0:02:05]} 37. Bf2 {[%emt 0:00:48]} Bxf4 {[%emt 0:07:08]} 38. bxc5 {[%emt 0:00:02]} Nb3 {[%emt 0:01:07]} 39. Rb1 {[%emt 0:00:11]} Rb8 {[%emt 0:02:15]} 40. Kc2 {[%emt 0:00:36]} Na5 {[%emt 0:01:07]} 41. Rxb8+ {[%emt 0:30:25]} Bxb8 {[%emt 0:30:06][%mdl 4096] Endgame KBB-KBN} 42. Kc3 {[%emt 0:01:39]} Bf4 {[%emt 0:01:19]} 43. c6 {[%emt 0:00:21]} g6 {[%emt 0:02:36]} 44. h6 {[%emt 0:01:18]} f5 {[%emt 0:01:21]} 45. gxf6 {[%emt 0:00:28] [#] White threatens Be6 and mate.} Kf7 {[%emt 0:00:39]} 46. Bd4 {[%emt 0:00:47]} Bc7 {[%emt 0:01:29]} 47. Be6+ {[%emt 0:00:14] Weighted Error Value: White=0.09 (flawless) /Black=0.49} 1-0

[Event "Fredericia WIM 2022"]
[Site "Fredericia"]
[Date "2022.05.27"]
[Round "6.1"]
[White "Doluhanova, Evgeniya"]
[Black "Lach, Aleksandra"]
[Result "1-0"]
[ECO "A10"]
[WhiteElo "2270"]
[BlackElo "2202"]
[Annotator "TA"]
[PlyCount "95"]
[EventDate "2022.05.25"]
[EventType "tourn"]
[EventCountry "DEN"]
[SourceTitle "playchess.com"]
[Source "ChessBase"]
[SourceQuality "1"]
[TimeControl "40/5400+30:1800+30"]

{[%evp 9,95,0,16,-72,-29,-41,-29,-45,-49,-84,-70,-70,-41,-39,-10,-10,-6,-8,0,-9,8,-12,42,16,30,14,19,23,48,39,58,75,46,18,22,23,18,20,39,-12,0,0,0,-16,-16,-16,-7,-27,-15,-8,-7,-55,18,19,190,172,140,153,321,304,292,292,303,245,238,235,220,165,197,22,325,320,302,14,22,22,832,783,5933,5933,5595,5484,29986,29981,29988,29988,29988,29989]} 1. c4 {[%emt 0:01:05]} f5 {[%emt 0:00:31]} 2. b3 {[%emt 0:00:43]} d6 {[%emt 0:04:03]} 3. Nc3 {[%emt 0:06:16]} Nf6 {[%emt 0:02:57]} 4. Bb2 {[%emt 0:01:57]} e5 {[%emt 0:03:29]} 5. g3 {[%emt 0:05:30]} g6 {[%emt 0:05:45] [#]} 6. e4 $146 {[%emt 0:01:26] A10: English Opening: Unusual Replies for Black.} (6. d4 $11) ({Predecessor:} 6. Bg2 Bg7 7. d3 O-O 8. e4 f4 9. gxf4 Nh5 10. Nge2 Nxf4 11. Nxf4 Rxf4 12. Nd5 Rf7 13. Qe2 Qh4 14. O-O c6 15. Ne3 Nd7 {0-1 (15) Mikhailovsky,V (2167)-Tashkov,R (2236) Chess.com INT 2018}) 6... Nc6 {[%emt 0:08:50]} 7. Bg2 {[%emt 0:00:49]} Bg7 {[%emt 0:05:52]} 8. Nge2 {[%emt 0:04:53] Black has an edge.} O-O {[%emt 0:04:06]} 9. O-O {[%emt 0:00:14]} f4 {[%emt 0:06:03]} 10. f3 {[%emt 0:01:45]} g5 {[%emt 0:10:24]} 11. Nd5 {[%emt 0:02:09]} Nxd5 {[%emt 0:08:04]} (11... fxg3 {seems wilder.} 12. hxg3 Nh5 13. g4 Nf4) 12. cxd5 {[%emt 0:00:26]} Ne7 {[%emt 0:00:08]} 13. d4 {[%emt 0:00:36]} Ng6 {[%emt 0:03:47]} 14. Rc1 {[%emt 0:02:30]} Rf7 {[%emt 0:03:28]} 15. Qd2 {[%emt 0:01:07]} Qf8 {[%emt 0:01:14]} (15... a5 $11) 16. dxe5 {[%emt 0:01:17]} Bxe5 {[%emt 0:07:20]} 17. Bxe5 {[%emt 0:00:47]} dxe5 {[%emt 0:00:20]} 18. Rc3 {[%emt 0:00:33][%cal Bc1c3,Bc3f3,Bf3g3,Bg3g5][%mdl 32]} g4 {[%emt 0:07:07]} 19. gxf4 {[%emt 0:04:31]} gxf3 {[%emt 0:00:51]} 20. Rcxf3 {[%emt 0:00:50] Strongly threatening f5.} Bg4 {[%emt 0:00:08]} 21. Rg3 {[%emt 0:03:18]} Bxe2 {[%emt 0:00:08]} 22. Qxe2 {[%emt 0:01:21]} exf4 {[%emt 0:00:09]} 23. Rg5 {[%emt 0:00:51]} Qe7 {[%emt 0:02:32]} 24. h4 {[%emt 0:02:54]} (24. Qh5 $14) 24... Rg7 {[%emt 0:01:13]} 25. Qg4 {[%emt 0:08:59]} Rf8 {[%emt 0:00:26]} 26. h5 {[%emt 0:05:32]} Ne5 {[%emt 0:00:29]} 27. Rxg7+ {[%emt 0:00:21]} Qxg7 {[%emt 0:00:01]} 28. Qxg7+ {[%emt 0:00:22]} Kxg7 $11 {[%emt 0:00:02][%mdl 4096] Endgame KRB-KRN} 29. Bh3 {[%emt 0:00:29]} f3 {[%emt 0:02:04]} 30. Bf5 {[%emt 0:01:23]} (30. Rc1 $11 Rf7 31. Be6) 30... Kh6 {[%emt 0:00:48]} ({Better is} 30... Kf6 $1 $15) 31. Kf2 {[%emt 0:00:19]} c6 $2 {[%emt 0:03:25]} (31... Kg5 $11) 32. d6 $18 {[%emt 0:01:53][%cal Bd5d6,Bd6d7][%mdl 32]} Rd8 {[%emt 0:02:41]} 33. d7 {[%emt 0:00:34]} ({Much less strong is} 33. Rd1 Kxh5 34. Bxh7 Kg5 $14) 33... Kxh5 $2 {[%emt 0:00:55]} (33... Nxd7 $2 34. Rd1 $18 (34. Kxf3 Nf6 $11)) (33... Kg5 $16 34. Ke3 a5 35. Rg1+ Kh6) 34. Rg1 $1 {[%emt 0:04:04] Hoping for Rg7.} Kh6 {[%emt 0:00:36] Prevents Rg7.} 35. Ke3 {[%emt 0:00:52]} c5 {[%emt 0:05:13]} 36. Rh1+ {[%emt 0:13:20][%mdl 64] Deflection} Kg5 {[%emt 0:00:35]} 37. Rxh7 {[%emt 0:00:30]} Kf6 {[%emt 0:00:30]} 38. a4 {[%emt 0:09:52]} b6 {[%emt 0:01:31]} 39. Kf2 $2 {[%emt 0:00:24]} ({White should play} 39. Rh6+ $18 Kf7 40. Rd6) 39... a6 $2 {[%emt 0:01:34][%mdl 8192]} (39... Nf7 $1 $11 {and Black is okay.}) 40. Rh6+ {[%emt 0:00:51]} Kg5 {[%emt 0:00:23]} 41. Re6 {[%emt 0:31:47]} (41. Rxb6 $18 Kf4 42. Rd6 (42. Rxa6 Nd3+ 43. Kg1 Ke3 $17)) 41... Kf4 $11 {[%emt 0:30:08]} (41... Nxd7 $2 42. Rd6 (42. Kxf3 Rg8 $18) 42... Kf4 43. Bxd7 $18) 42. Re8 {[%emt 0:00:34]} Nc6 {[%emt 0:00:00][%mdl 8192] [#]} (42... Nd3+ $2 43. Kf1 Rxd7 44. Bxd7 $18) (42... Rxd7 $11 43. Bxd7 Nxd7) 43. Bh3 $1 $18 {[%emt 0:00:51]} b5 {[%emt 0:00:31]} 44. axb5 {[%emt 0:00:13]} axb5 {[%emt 0:00:01] [#]} 45. e5 $1 {[%emt 0:00:19][%cal Be4e5,Be5e6][%mdl 32] e6 would kill now.} c4 {[%emt 0:00:56]} 46. bxc4 {[%emt 0:02:36] White mates.} bxc4 {[%emt 0:00:13]} 47. Rxd8 {[%emt 0:00:29]} Nxd8 {[%emt 0:00:38]} 48. e6 {[%emt 0:00:08] Weighted Error Value: White=0.35/Black=0.58} 1-0

[Event "Fredericia WIM 2022"]
[Site "Fredericia"]
[Date "2022.05.27"]
[Round "6.2"]
[White "Dwilewicz, Katarzyna"]
[Black "Goossens, Hanne"]
[Result "1/2-1/2"]
[ECO "B56"]
[WhiteElo "2079"]
[BlackElo "2184"]
[Annotator "TA"]
[PlyCount "63"]
[EventDate "2022.05.25"]
[EventType "tourn"]
[EventCountry "DEN"]
[SourceTitle "playchess.com"]
[Source "ChessBase"]
[SourceQuality "1"]
[TimeControl "40/5400+30:1800+30"]

{[%evp 14,63,13,12,14,16,13,13,13,13,22,13,8,19,12,12,17,8,5,5,6,3,6,0,22,8,9,9,3,8,0,-26,0,-47,0,0,0,0,0,0,0,0,0,0,0,0,0,0,9,9,10,12]} 1. e4 {[%emt 0:00:03]} c5 {[%emt 0:00:04]} 2. Nf3 {[%emt 0:00:07]} Nc6 {[%emt 0:00:04]} 3. d4 {[%emt 0:00:04]} cxd4 {[%emt 0:00:05]} 4. Nxd4 {[%emt 0:00:06]} Nf6 {[%emt 0:00:15]} 5. Nc3 {[%emt 0:00:06]} d6 {[%emt 0:00:05]} 6. f3 {[%emt 0:00:13]} e5 {[%emt 0:01:51]} 7. Nb3 {[%emt 0:00:08]} Be6 {[%emt 0:00:07]} 8. Be3 {[%emt 0:00:11] 8.Nd5 injects fresh life into this line.} d5 {[%emt 0:00:50] B56: Classical Sicilian: Unusual Lines.} 9. exd5 {[%emt 0:00:20]} (9. Nxd5 {feels hotter.} Nxd5 10. exd5 Qxd5 11. Qxd5 Bxd5 12. O-O-O) 9... Nxd5 {[%emt 0:00:07]} 10. Nxd5 {[%emt 0:00:43]} Qxd5 {[%emt 0:00:04]} 11. Qxd5 {[%emt 0:00:12]} Bxd5 {[%emt 0:00:04]} 12. O-O-O {[%emt 0:00:08]} O-O-O {[%emt 0:02:01]} 13. Bb5 {[%emt 0:02:37]} a6 {[%emt 0:01:52]} 14. Bxc6 {[%emt 0:01:50]} Bxc6 {[%emt 0:01:08]} 15. Na5 {[%emt 0:07:09]} Rxd1+ {[%emt 0:03:53]} 16. Rxd1 {[%emt 0:00:07]} Bb5 {[%emt 0:17:27]} 17. c4 {[%emt 0:06:02] [#]} Ba4 $146 {[%emt 0:05:33]} ({Predecessor:} 17... Be8 18. Bb6 Be7 19. c5 f5 20. Nc4 e4 21. fxe4 fxe4 22. Nd6+ Bxd6 23. Rxd6 Bc6 {½-½ (32) Sutton,A (2164)-Sitorus,Y (2261) ICCF email 2016}) 18. b3 {[%emt 0:09:49]} Be8 {[%emt 0:03:54]} 19. c5 {[%emt 0:07:22]} f6 {[%emt 0:04:55]} 20. Nc4 {[%emt 0:02:52]} Bc6 {[%emt 0:03:17]} 21. Kb2 {[%emt 0:05:34]} Be7 {[%emt 0:01:29]} 22. Nd6+ {[%emt 0:03:46]} Kc7 {[%emt 0:06:39]} 23. Bd2 {[%emt 0:12:02]} (23. f4 $11) 23... b6 {[%emt 0:11:27]} (23... Kd7 $1 $15 {is superior.}) 24. Bb4 $11 {[%emt 0:02:46] The position is equal.} bxc5 {[%emt 0:04:28]} 25. Ba5+ {[%emt 0:09:07]} Kb8 {[%emt 0:00:40]} 26. Nf5 {[%emt 0:04:30][%csl LRe7,LRg7]} Re8 {[%emt 0:04:03]} 27. Nxe7 {[%emt 0:10:14]} Rxe7 {[%emt 0:00:09]} 28. Bb6 {[%emt 0:00:51]} Kb7 {[%emt 0:04:58]} 29. Bxc5 {[%emt 0:00:07]} Re8 {[%emt 0:00:14]} 30. Kc3 {[%emt 0:08:18]} e4 {[%emt 0:00:50]} 31. fxe4 {[%emt 0:00:38]} Bxe4 {[%emt 0:02:59]} 32. g3 {[%emt 0:04:47] A rather calm draw.  Weighted Error Value: White=0.05 (flawless) /Black=0.05 (flawless)} 1/2-1/2

[Event "Fredericia WIM 2022"]
[Site "Fredericia"]
[Date "2022.05.27"]
[Round "6.3"]
[White "Durrfeld, Sofie Bech"]
[Black "Andersson, Christin"]
[Result "0-1"]
[ECO "C23"]
[WhiteElo "1773"]
[BlackElo "2028"]
[Annotator "TA"]
[PlyCount "44"]
[EventDate "2022.05.25"]
[EventType "tourn"]
[EventCountry "DEN"]
[SourceTitle "playchess.com"]
[Source "ChessBase"]
[SourceQuality "1"]
[TimeControl "40/5400+30:1800+30"]

{[%evp 9,43,0,53,10,4,7,20,0,0,0,4,-66,-36,-356,-363,-355,-350,-353,-354,-350,-364,-448,-444,-449,-455,-858,-836,-2132,-2088,-1661,-758,-29997,-29998,-29998,-29999,-29999]} 1. e4 {[%emt 0:00:05]} e5 {[%emt 0:00:07]} 2. Bc4 {[%emt 0:00:07]} d6 {[%emt 0:00:29]} 3. Nc3 {[%emt 0:00:14]} Nf6 {[%emt 0:00:26]} 4. d3 {[%emt 0:00:18]} c6 {[%emt 0:00:51]} 5. Nf3 {[%emt 0:01:51]} Be6 {[%emt 0:01:40]} (5... b5 $11 6. Bb3 Be7) 6. O-O {[%emt 0:01:08] C27: Vienna Game: 2...Nf6 3 Bc4 Nxe4.} Bxc4 {[%emt 0:00:18]} 7. dxc4 {[%emt 0:00:07] [#]} Be7 $146 {[%emt 0:00:27]} ({Predecessor:} 7... Nbd7 8. Be3 Be7 9. Nh4 Nc5 10. Qf3 g6 11. Rad1 Nfxe4 12. g3 Bxh4 13. Nxe4 Nxe4 14. Qxe4 {0-1 (38) Jankovic,V-Papanek,L (1635) Slovakia 2013}) 8. Qd3 {[%emt 0:04:22][%cal Oc4c5] The position is equal.} Nbd7 {[%emt 0:01:00]} 9. Be3 {[%emt 0:00:47]} O-O {[%emt 0:00:59]} 10. Ne2 {[%emt 0:00:58]} ({Better is} 10. a4 $11) 10... d5 {[%emt 0:02:10]} (10... Nxe4 $5 11. Qxe4 f5 $11) 11. Ng3 {[%emt 0:03:23][%mdl 8192] [#]} ({Don't blunder} 11. exd5 $2 e4 12. Qb3 exf3 13. gxf3 cxd5 14. cxd5 Nc5 15. Bxc5 Bxc5 $19) (11. cxd5 $15 cxd5 12. Ng3 (12. exd5 $2 e4 $19)) 11... dxe4 $1 $19 {[%emt 0:01:22]} 12. Nxe4 {[%emt 0:00:12]} Nxe4 {[%emt 0:00:18]} 13. Qxe4 {[%emt 0:00:08]} f5 {[%emt 0:00:27]} 14. Qd3 {[%emt 0:04:26]} e4 {[%emt 0:00:11][%cal Be5e4,Be4f3][%mdl 32]} 15. Qb3 {[%emt 0:00:43][%cal Ob3b7]} exf3 {[%emt 0:00:26]} 16. Rfd1 {[%emt 0:01:36]} Qe8 {[%emt 0:01:10][%cal Oe8g6] ...Qg6! is the strong threat.} 17. Qxb7 {[%emt 0:00:50]} (17. c5+ $142 Kh8 18. Bd4) 17... Ne5 {[%emt 0:02:12][%cal Oe8g6] aiming for ...Qg6!} 18. Bd4 {[%emt 0:03:07] [#]} Qg6 $1 {[%emt 0:00:30][%csl Gf3][%cal Rg6g2]} 19. g3 {[%emt 0:00:47] [#]} Qh5 $1 {[%emt 0:01:19]} 20. Kh1 {[%emt 0:02:12] [#]} (20. h4 Bf6) 20... Qh3 $1 {[%emt 0:01:02][%csl Gf3][%cal Rh3g2] Black mates.} 21. Rg1 {[%emt 0:00:58] [#]} Ng4 $1 {[%emt 0:00:15][%csl Gg4][%cal Rh3h2]} 22. Qxe7 {[%emt 0:00:13]} (22. b3 Qxh2#) 22... Qxh2# {White got outplayed after the opening.  Weighted Error Value: White=1.40/Black=0.36} 0-1